[Event "Titled Tuesday Blitz September 13 Early 2022"]
[White "Sargsyan, Anna M."]
[Black "Maksimovic, Bojan"]
[WhiteFideId "13308130"]
[BlackFideId "14408120"]
[WhiteElo "2271"]
[BlackElo "2447"]
[Result "0-1"]
[Round "08"]
[TimeControl "180+1"]
[Date "2022.09.13"]
[WhiteClock "0:00:03"]
[BlackClock "0:00:05"]

1. d4 {[%clk 0:02:58]}  Nf6 {[%clk 0:03:00]} 2. c4 {[%clk 0:02:58]}  g6 {[%clk 0:03:00]} 3. g3 {[%clk 0:02:59]}  Bg7 {[%clk 0:03:00]} 4. Bg2 {[%clk 0:02:59]}  O-O {[%clk 0:03:00]} 5. Nc3 {[%clk 0:03:00]}  d6 {[%clk 0:03:01]} 6. Nf3 {[%clk 0:03:00]}  Nc6 {[%clk 0:03:02]} 7. O-O {[%clk 0:02:59]}  Bg4 {[%clk 0:03:02]} 8. d5 {[%clk 0:02:52]}  Na5 {[%clk 0:03:01]} 9. Nd2 {[%clk 0:02:52]}  c5 {[%clk 0:03:00]} 10. h3 {[%clk 0:02:49]}  Bd7 {[%clk 0:02:57]} 11. e4 {[%clk 0:02:47]}  a6 {[%clk 0:02:55]} 12. a4 {[%clk 0:02:46]}  e5 {[%clk 0:02:49]} 13. b3 {[%clk 0:02:38]}  Nh5 {[%clk 0:02:31]} 14. Bb2 {[%clk 0:02:28]}  Qb6 {[%clk 0:02:30]} 15. Kh2 {[%clk 0:02:23]}  Bh8 {[%clk 0:02:19]} 16. Ne2 {[%clk 0:02:16]}  Rae8 {[%clk 0:02:17]} 17. Bc3 {[%clk 0:02:12]}  f5 {[%clk 0:02:11]} 18. exf5 {[%clk 0:02:07]}  gxf5 {[%clk 0:02:12]} 19. Rb1 {[%clk 0:01:45]}  Qc7 {[%clk 0:01:47]} 20. Qc2 {[%clk 0:01:26]}  e4 {[%clk 0:01:37]} 21. Bxh8 {[%clk 0:01:17]}  Kxh8 {[%clk 0:01:38]} 22. b4 {[%clk 0:01:11]}  cxb4 {[%clk 0:01:38]} 23. Rxb4 {[%clk 0:01:12]}  Qc5 {[%clk 0:01:21]} 24. Qc3+ {[%clk 0:00:59]}  Kg8 {[%clk 0:01:18]} 25. Nd4 {[%clk 0:00:56]}  Nf6 {[%clk 0:00:53]} 26. Rc1 {[%clk 0:00:39]}  Rc8 {[%clk 0:00:52]} 27. N2b3 {[%clk 0:00:24]}  Nxb3 {[%clk 0:00:51]} 28. Nxb3 {[%clk 0:00:24]}  Qxf2 {[%clk 0:00:43]} 29. Rxb7 {[%clk 0:00:18]}  Nxd5 {[%clk 0:00:23]} 30. Qd4 {[%clk 0:00:18]}  Ne3 {[%clk 0:00:23]} 31. Rg1 {[%clk 0:00:14]}  Rf7 {[%clk 0:00:23]} 32. Kh1 {[%clk 0:00:08]}  Rcf8 {[%clk 0:00:12]} 33. c5 {[%clk 0:00:06]}  Be6 {[%clk 0:00:10]} 34. Rxf7 {[%clk 0:00:06]}  Bxf7 {[%clk 0:00:10]} 35. Na5 {[%clk 0:00:02]}  dxc5 {[%clk 0:00:09]} 36. Qxc5 {[%clk 0:00:03]}  Ng4 {[%clk 0:00:05]} 0-1


[Site "https://www.chess.com"]

[Event "Titled Tuesday Blitz September 13 Early 2022"]
[White "Sharapov, Evgeny"]
[Black "Belov, Vladimir"]
[WhiteFideId "14103133"]
[BlackFideId "4132394"]
[WhiteElo "2367"]
[BlackElo "2501"]
[Result "0-1"]
[Round "08"]
[TimeControl "180+1"]
[Date "2022.09.13"]
[WhiteClock "0:02:24"]
[BlackClock "0:02:26"]

1. e4 {[%clk 0:02:59]}  c5 {[%clk 0:02:59]} 2. Nf3 {[%clk 0:02:59]}  d6 {[%clk 0:03:00]} 3. d4 {[%clk 0:02:58]}  cxd4 {[%clk 0:03:01]} 4. Nxd4 {[%clk 0:02:59]}  Nf6 {[%clk 0:03:01]} 5. f3 {[%clk 0:02:59]}  e5 {[%clk 0:03:01]} 6. Nb3 {[%clk 0:02:59]}  d5 {[%clk 0:03:01]} 7. Bg5 {[%clk 0:02:59]}  d4 {[%clk 0:03:02]} 8. c3 {[%clk 0:02:58]}  Nc6 {[%clk 0:03:02]} 9. Bb5 {[%clk 0:02:58]}  h6 {[%clk 0:02:54]} 10. Bxf6 {[%clk 0:02:54]}  Qxf6 {[%clk 0:02:54]} 11. cxd4 {[%clk 0:02:51]}  Bb4+ {[%clk 0:02:54]} 12. Nc3 {[%clk 0:02:50]}  O-O {[%clk 0:02:52]} 13. Bxc6 {[%clk 0:02:42]}  bxc6 {[%clk 0:02:49]} 14. O-O {[%clk 0:02:39]}  Ba6 {[%clk 0:02:46]} 15. Re1 {[%clk 0:02:37]}  exd4 {[%clk 0:02:28]} 16. Qxd4 {[%clk 0:02:35]}  Qxd4+ {[%clk 0:02:28]} 17. Nxd4 {[%clk 0:02:34]}  Bc5 {[%clk 0:02:28]} 18. Rad1 {[%clk 0:02:24]}  Rfd8 {[%clk 0:02:26]} 0-1


[Site "https://www.chess.com"]

[Event "Titled Tuesday Blitz September 13 Early 2022"]
[White "Vaibhav Jayant Raut"]
[Black "Bok, Benjamin"]
[WhiteFideId "5089034"]
[BlackFideId "1017063"]
[WhiteElo "2122"]
[BlackElo "2658"]
[Result "0-1"]
[Round "08"]
[TimeControl "180+1"]
[Date "2022.09.13"]
[WhiteClock "0:00:01"]
[BlackClock "0:00:08"]

1. c4 {[%clk 0:03:00]}  c6 {[%clk 0:02:58]} 2. Nc3 {[%clk 0:02:58]}  d5 {[%clk 0:02:58]} 3. cxd5 {[%clk 0:02:55]}  cxd5 {[%clk 0:02:59]} 4. d4 {[%clk 0:02:55]}  Nf6 {[%clk 0:03:00]} 5. Nf3 {[%clk 0:02:54]}  Nc6 {[%clk 0:03:00]} 6. Bf4 {[%clk 0:02:53]}  Bf5 {[%clk 0:03:01]} 7. e3 {[%clk 0:02:53]}  e6 {[%clk 0:03:01]} 8. Bd3 {[%clk 0:02:54]}  Bxd3 {[%clk 0:03:01]} 9. Qxd3 {[%clk 0:02:54]}  Be7 {[%clk 0:03:02]} 10. h3 {[%clk 0:02:53]}  O-O {[%clk 0:03:02]} 11. O-O {[%clk 0:02:53]}  Qb6 {[%clk 0:03:02]} 12. a3 {[%clk 0:02:40]}  Na5 {[%clk 0:02:57]} 13. b4 {[%clk 0:02:12]}  Nc4 {[%clk 0:02:57]} 14. Na4 {[%clk 0:01:57]}  Qc6 {[%clk 0:02:46]} 15. Qb3 {[%clk 0:01:47]}  Rfc8 {[%clk 0:02:24]} 16. Rfc1 {[%clk 0:01:38]}  b5 {[%clk 0:02:14]} 17. Nc5 {[%clk 0:01:36]}  a5 {[%clk 0:02:12]} 18. Ne5 {[%clk 0:01:33]}  Qe8 {[%clk 0:02:03]} 19. Ned3 {[%clk 0:01:25]}  Ne4 {[%clk 0:01:52]} 20. Nxe4 {[%clk 0:01:20]}  dxe4 {[%clk 0:01:52]} 21. Nc5 {[%clk 0:01:13]}  a4 {[%clk 0:01:03]} 22. Qa2 {[%clk 0:01:08]}  Bxc5 {[%clk 0:00:59]} 23. dxc5 {[%clk 0:00:59]}  e5 {[%clk 0:00:58]} 24. Bg3 {[%clk 0:00:59]}  Qe6 {[%clk 0:00:57]} 25. Rd1 {[%clk 0:00:57]}  Rd8 {[%clk 0:00:56]} 26. Bh4 {[%clk 0:00:56]}  f6 {[%clk 0:00:54]} 27. Qc2 {[%clk 0:00:47]}  g5 {[%clk 0:00:51]} 28. Bg3 {[%clk 0:00:46]}  f5 {[%clk 0:00:52]} 29. Bh2 {[%clk 0:00:36]}  Kf7 {[%clk 0:00:47]} 30. Qe2 {[%clk 0:00:29]}  Kg6 {[%clk 0:00:43]} 31. Qc2 {[%clk 0:00:26]}  Rxd1+ {[%clk 0:00:19]} 32. Qxd1 {[%clk 0:00:24]}  h5 {[%clk 0:00:15]} 33. Kh1 {[%clk 0:00:07]}  h4 {[%clk 0:00:15]} 34. Kg1 {[%clk 0:00:07]}  Re8 {[%clk 0:00:10]} 35. Qc2 {[%clk 0:00:05]}  Rd8 {[%clk 0:00:10]} 36. Rd1 {[%clk 0:00:05]}  Nxa3 {[%clk 0:00:09]} 37. Qc1 {[%clk 0:00:04]}  Rxd1+ {[%clk 0:00:09]} 38. Qxd1 {[%clk 0:00:05]}  Nc4 {[%clk 0:00:10]} 39. Qd8 {[%clk 0:00:05]}  a3 {[%clk 0:00:10]} 40. Qa8 {[%clk 0:00:05]}  Qd7 {[%clk 0:00:10]} 41. Qa6+ {[%clk 0:00:02]}  Kg7 {[%clk 0:00:09]} 42. g4 {[%clk 0:00:02]}  f4 {[%clk 0:00:08]} 43. c6 {[%clk 0:00:02]}  Qd1+ {[%clk 0:00:07]} 44. Kg2 {[%clk 0:00:01]}  f3# {[%clk 0:00:08]} 0-1


[Site "https://www.chess.com"]

[Event "Titled Tuesday Blitz September 13 Early 2022"]
[White "Vogel, Roven"]
[Black "Jobava, Baadur"]
[WhiteFideId "12908088"]
[BlackFideId "13601520"]
[WhiteElo "2501"]
[BlackElo "2582"]
[Result "0-1"]
[Round "08"]
[TimeControl "180+1"]
[Date "2022.09.13"]
[WhiteClock "0:00:20"]
[BlackClock "0:01:07"]

1. d4 {[%clk 0:03:00]}  Nf6 {[%clk 0:03:00]} 2. c4 {[%clk 0:03:00]}  c5 {[%clk 0:03:00]} 3. d5 {[%clk 0:02:58]}  g6 {[%clk 0:03:01]} 4. Nc3 {[%clk 0:02:58]}  d6 {[%clk 0:03:01]} 5. e4 {[%clk 0:02:59]}  Bg7 {[%clk 0:03:02]} 6. h3 {[%clk 0:02:59]}  O-O {[%clk 0:03:03]} 7. Nf3 {[%clk 0:02:59]}  e6 {[%clk 0:03:03]} 8. Bd3 {[%clk 0:02:58]}  exd5 {[%clk 0:03:04]} 9. exd5 {[%clk 0:02:50]}  Re8+ {[%clk 0:03:05]} 10. Be3 {[%clk 0:02:51]}  Rxe3+ {[%clk 0:03:05]} 11. fxe3 {[%clk 0:02:52]}  Qe7 {[%clk 0:03:05]} 12. O-O {[%clk 0:02:52]}  Nbd7 {[%clk 0:03:06]} 13. Qd2 {[%clk 0:02:45]}  b6 {[%clk 0:03:06]} 14. Rf2 {[%clk 0:02:43]}  Ba6 {[%clk 0:03:06]} 15. Raf1 {[%clk 0:02:40]}  Rf8 {[%clk 0:03:06]} 16. e4 {[%clk 0:02:22]}  h5 {[%clk 0:03:01]} 17. e5 {[%clk 0:02:18]}  dxe5 {[%clk 0:02:53]} 18. Qg5 {[%clk 0:01:44]}  Qd8 {[%clk 0:02:39]} 19. Nd2 {[%clk 0:01:33]}  e4 {[%clk 0:02:26]} 20. Bxe4 {[%clk 0:01:23]}  Nxe4 {[%clk 0:02:27]} 21. Qxd8 {[%clk 0:01:22]}  Rxd8 {[%clk 0:02:28]} 22. Ndxe4 {[%clk 0:01:21]}  Bxc4 {[%clk 0:02:23]} 23. Rxf7 {[%clk 0:01:15]}  Bxf1 {[%clk 0:02:22]} 24. Rxf1 {[%clk 0:01:16]}  Bd4+ {[%clk 0:02:22]} 25. Kh1 {[%clk 0:01:14]}  Ne5 {[%clk 0:02:18]} 26. Nb5 {[%clk 0:01:09]}  Bxb2 {[%clk 0:02:09]} 27. Nxa7 {[%clk 0:01:06]}  Kg7 {[%clk 0:02:05]} 28. d6 {[%clk 0:01:03]}  c4 {[%clk 0:02:01]} 29. Nb5 {[%clk 0:01:02]}  Rf8 {[%clk 0:01:49]} 30. Rb1 {[%clk 0:01:01]}  Nd3 {[%clk 0:01:49]} 31. Nc7 {[%clk 0:00:52]}  Rf7 {[%clk 0:01:34]} 32. Nd5 {[%clk 0:00:33]}  b5 {[%clk 0:01:32]} 33. Nb6 {[%clk 0:00:24]}  Bd4 {[%clk 0:01:28]} 34. Rxb5 {[%clk 0:00:21]}  h4 {[%clk 0:01:08]} 35. Nxc4 {[%clk 0:00:20]}  Rf1+ {[%clk 0:01:06]} 36. Kh2 {[%clk 0:00:20]}  Bg1+ {[%clk 0:01:07]} 37. Kh1 {[%clk 0:00:20]}  Nf2+ {[%clk 0:01:07]} 0-1


[Site "https://www.chess.com"]

[Event "Titled Tuesday Blitz September 13 Early 2022"]
[White "Zhigalko, Sergei"]
[Black "Beerdsen, Thomas"]
[WhiteFideId "13502956"]
[BlackFideId "1030108"]
[WhiteElo "2919"]
[BlackElo "2871"]
[Result "1-0"]
[Round "08"]
[TimeControl "180+1"]
[Date "2022.09.13"]
[WhiteClock "0:01:08"]
[BlackClock "0:01:20"]

1. e4 {[%clk 0:03:00]}  c5 {[%clk 0:02:57]} 2. Nf3 {[%clk 0:03:00]}  g6 {[%clk 0:02:57]} 3. c3 {[%clk 0:03:00]}  Bg7 {[%clk 0:02:56]} 4. d4 {[%clk 0:03:01]}  d5 {[%clk 0:02:56]} 5. e5 {[%clk 0:02:58]}  Nc6 {[%clk 0:02:54]} 6. Bb5 {[%clk 0:02:56]}  Nh6 {[%clk 0:02:49]} 7. O-O {[%clk 0:02:54]}  O-O {[%clk 0:02:47]} 8. Re1 {[%clk 0:02:52]}  cxd4 {[%clk 0:02:46]} 9. cxd4 {[%clk 0:02:52]}  Bg4 {[%clk 0:02:46]} 10. Bxc6 {[%clk 0:02:52]}  bxc6 {[%clk 0:02:47]} 11. Nbd2 {[%clk 0:02:53]}  Qb6 {[%clk 0:02:30]} 12. h3 {[%clk 0:02:53]}  Bc8 {[%clk 0:02:25]} 13. Nb3 {[%clk 0:02:48]}  a5 {[%clk 0:02:23]} 14. Nc5 {[%clk 0:02:41]}  Nf5 {[%clk 0:02:17]} 15. Bf4 {[%clk 0:01:54]}  Qxb2 {[%clk 0:02:02]} 16. Rb1 {[%clk 0:01:49]}  Qc3 {[%clk 0:01:48]} 17. g4 {[%clk 0:01:15]}  Nxd4 {[%clk 0:01:45]} 18. Qxd4 {[%clk 0:01:15]}  Qc2 {[%clk 0:01:20]} 19. Rb2 {[%clk 0:01:08]} 1-0


[Site "https://www.chess.com"]

[Event "Titled Tuesday Blitz September 13 Early 2022"]
[White "Aloma Vidal, Robert"]
[Black "Vogel, Roven"]
[WhiteFideId "2260409"]
[BlackFideId "12908088"]
[WhiteElo "2435"]
[BlackElo "2501"]
[Result "1/2-1/2"]
[Round "09"]
[TimeControl "180+1"]
[Date "2022.09.13"]
[WhiteClock "0:00:06"]
[BlackClock "0:00:21"]

1. e4 {[%clk 0:03:00]}  e5 {[%clk 0:02:59]} 2. Nf3 {[%clk 0:03:00]}  Nc6 {[%clk 0:02:59]} 3. Bc4 {[%clk 0:03:00]}  Nf6 {[%clk 0:02:59]} 4. d4 {[%clk 0:03:01]}  exd4 {[%clk 0:02:56]} 5. e5 {[%clk 0:03:01]}  Ne4 {[%clk 0:02:31]} 6. O-O {[%clk 0:02:59]}  Nc5 {[%clk 0:02:20]} 7. Nxd4 {[%clk 0:02:56]}  Nxd4 {[%clk 0:02:18]} 8. Qxd4 {[%clk 0:02:55]}  Ne6 {[%clk 0:02:13]} 9. Qg4 {[%clk 0:02:43]}  d5 {[%clk 0:02:09]} 10. exd6 {[%clk 0:02:43]}  Qxd6 {[%clk 0:02:06]} 11. Nc3 {[%clk 0:02:37]}  Be7 {[%clk 0:02:01]} 12. Be3 {[%clk 0:02:12]}  O-O {[%clk 0:01:57]} 13. Rad1 {[%clk 0:02:11]}  Qe5 {[%clk 0:01:26]} 14. Rd5 {[%clk 0:01:55]}  Qf6 {[%clk 0:01:26]} 15. Qg3 {[%clk 0:01:46]}  Bd6 {[%clk 0:01:20]} 16. Ne4 {[%clk 0:01:43]}  Qxb2 {[%clk 0:01:08]} 17. Nxd6 {[%clk 0:01:38]}  cxd6 {[%clk 0:01:08]} 18. Rxd6 {[%clk 0:01:12]}  Qxc2 {[%clk 0:01:08]} 19. Bd3 {[%clk 0:01:05]}  Qxa2 {[%clk 0:00:56]} 20. Qh4 {[%clk 0:01:02]}  g6 {[%clk 0:00:46]} 21. Qf6 {[%clk 0:00:58]}  Qa3 {[%clk 0:00:42]} 22. Rd5 {[%clk 0:00:33]}  Re8 {[%clk 0:00:42]} 23. Bh6 {[%clk 0:00:21]}  Qe7 {[%clk 0:00:41]} 24. Qb2 {[%clk 0:00:14]}  Bd7 {[%clk 0:00:36]} 25. Qxb7 {[%clk 0:00:13]}  Rad8 {[%clk 0:00:32]} 26. Qxa7 {[%clk 0:00:11]}  Bc6 {[%clk 0:00:32]} 27. Qxe7 {[%clk 0:00:09]}  Rxe7 {[%clk 0:00:33]} 28. Rxd8+ {[%clk 0:00:09]}  Nxd8 {[%clk 0:00:34]} 29. Rc1 {[%clk 0:00:07]}  Rd7 {[%clk 0:00:31]} 30. Bf1 {[%clk 0:00:07]}  f6 {[%clk 0:00:30]} 31. f3 {[%clk 0:00:08]}  Kf7 {[%clk 0:00:30]} 32. Bf4 {[%clk 0:00:07]}  Ne6 {[%clk 0:00:28]} 33. Be3 {[%clk 0:00:07]}  Bd5 {[%clk 0:00:28]} 34. Rd1 {[%clk 0:00:07]}  Bc6 {[%clk 0:00:28]} 35. Rc1 {[%clk 0:00:07]}  Bd5 {[%clk 0:00:28]} 36. Rd1 {[%clk 0:00:07]}  Bc6 {[%clk 0:00:28]} 37. Ra1 {[%clk 0:00:08]}  Ng7 {[%clk 0:00:26]} 38. Kf2 {[%clk 0:00:07]}  Nf5 {[%clk 0:00:25]} 39. Bc5 {[%clk 0:00:07]}  Rd2+ {[%clk 0:00:25]} 40. Kg1 {[%clk 0:00:07]}  Rd7 {[%clk 0:00:24]} 41. Bc4+ {[%clk 0:00:07]}  Bd5 {[%clk 0:00:25]} 42. Bb5 {[%clk 0:00:07]}  Rb7 {[%clk 0:00:24]} 43. Ra5 {[%clk 0:00:06]}  Be6 {[%clk 0:00:21]} 44. Kf2 {[%clk 0:00:06]}  Rc7 {[%clk 0:00:20]} 45. Bd3 {[%clk 0:00:05]}  h5 {[%clk 0:00:20]} 46. g4 {[%clk 0:00:05]}  hxg4 {[%clk 0:00:20]} 47. fxg4 {[%clk 0:00:05]}  Nh6 {[%clk 0:00:21]} 48. h3 {[%clk 0:00:06]}  Rd7 {[%clk 0:00:18]} 49. Ke3 {[%clk 0:00:06]}  Bxg4 {[%clk 0:00:18]} 50. hxg4 {[%clk 0:00:05]}  Nxg4+ {[%clk 0:00:19]} 51. Ke2 {[%clk 0:00:04]}  Ne5 {[%clk 0:00:18]} 52. Bc2 {[%clk 0:00:04]}  Rc7 {[%clk 0:00:18]} 53. Bb3+ {[%clk 0:00:04]}  Kg7 {[%clk 0:00:19]} 54. Bd4 {[%clk 0:00:04]}  Rd7 {[%clk 0:00:18]} 55. Bxe5 {[%clk 0:00:04]}  fxe5 {[%clk 0:00:19]} 56. Rxe5 {[%clk 0:00:04]}  Kf6 {[%clk 0:00:20]} 57. Re3 {[%clk 0:00:04]}  Re7 {[%clk 0:00:20]} 58. Rxe7 {[%clk 0:00:04]}  Kxe7 {[%clk 0:00:20]} 59. Kf3 {[%clk 0:00:04]}  g5 {[%clk 0:00:20]} 60. Kg4 {[%clk 0:00:05]}  Kd8 {[%clk 0:00:21]} 61. Kxg5 {[%clk 0:00:06]} 1/2-1/2


[Site "https://www.chess.com"]

[Event "Titled Tuesday Blitz September 13 Early 2022"]
[White "Barria Zuniga, Daniel"]
[Black "Goltsev, Dmitry"]
[WhiteFideId "3400816"]
[BlackFideId "24176710"]
[WhiteElo "2414"]
[BlackElo "2257"]
[Result "1-0"]
[Round "09"]
[TimeControl "180+1"]
[Date "2022.09.13"]
[WhiteClock "0:02:08"]
[BlackClock "0:02:28"]

1. d4 {[%clk 0:03:00]}  Nf6 {[%clk 0:02:59]} 2. c4 {[%clk 0:03:00]}  e6 {[%clk 0:03:00]} 3. Nf3 {[%clk 0:02:59]}  Bb4+ {[%clk 0:02:59]} 4. Nbd2 {[%clk 0:02:59]}  O-O {[%clk 0:02:56]} 5. g3 {[%clk 0:02:57]}  b6 {[%clk 0:02:56]} 6. Bg2 {[%clk 0:02:58]}  Bb7 {[%clk 0:02:56]} 7. O-O {[%clk 0:02:58]}  Bxd2 {[%clk 0:02:54]} 8. Qxd2 {[%clk 0:02:58]}  Ne4 {[%clk 0:02:54]} 9. Qc2 {[%clk 0:02:58]}  f5 {[%clk 0:02:54]} 10. Ng5 {[%clk 0:02:57]}  d5 {[%clk 0:02:53]} 11. Nxe6 {[%clk 0:02:57]}  Qe7 {[%clk 0:02:52]} 12. Nxf8 {[%clk 0:02:56]}  Kxf8 {[%clk 0:02:53]} 13. cxd5 {[%clk 0:02:54]}  Bxd5 {[%clk 0:02:54]} 14. f3 {[%clk 0:02:54]}  Nd6 {[%clk 0:02:50]} 15. e4 {[%clk 0:02:54]}  Be6 {[%clk 0:02:50]} 16. d5 {[%clk 0:02:48]}  Bf7 {[%clk 0:02:48]} 17. Bf4 {[%clk 0:02:43]}  Nd7 {[%clk 0:02:47]} 18. Rae1 {[%clk 0:02:40]}  Rc8 {[%clk 0:02:39]} 19. e5 {[%clk 0:02:39]}  Nb5 {[%clk 0:02:32]} 20. e6 {[%clk 0:02:35]}  Nc5 {[%clk 0:02:32]} 21. exf7 {[%clk 0:02:31]}  Qxf7 {[%clk 0:02:33]} 22. a4 {[%clk 0:02:17]}  Nd4 {[%clk 0:02:32]} 23. Qc4 {[%clk 0:02:15]}  Nc6 {[%clk 0:02:28]} 24. b4 {[%clk 0:02:08]} 1-0


[Site "https://www.chess.com"]

[Event "Titled Tuesday Blitz September 13 Early 2022"]
[White "Beerdsen, Thomas"]
[Black "Kamsky, Gata"]
[WhiteFideId "1030108"]
[BlackFideId "2000024"]
[WhiteElo "2567"]
[BlackElo "2666"]
[Result "1/2-1/2"]
[Round "09"]
[TimeControl "180+1"]
[Date "2022.09.13"]
[WhiteClock "0:00:18"]
[BlackClock "0:00:13"]

1. e4 {[%clk 0:03:00]}  e5 {[%clk 0:02:53]} 2. Nf3 {[%clk 0:03:00]}  Nc6 {[%clk 0:02:51]} 3. d4 {[%clk 0:03:00]}  exd4 {[%clk 0:02:50]} 4. Bc4 {[%clk 0:03:01]}  Nf6 {[%clk 0:02:37]} 5. O-O {[%clk 0:03:01]}  Nxe4 {[%clk 0:02:30]} 6. Nc3 {[%clk 0:03:01]}  Nxc3 {[%clk 0:02:14]} 7. bxc3 {[%clk 0:03:00]}  d5 {[%clk 0:02:12]} 8. Bb5 {[%clk 0:03:00]}  Be7 {[%clk 0:02:09]} 9. Re1 {[%clk 0:02:54]}  O-O {[%clk 0:02:08]} 10. Bxc6 {[%clk 0:02:52]}  bxc6 {[%clk 0:02:08]} 11. Ne5 {[%clk 0:02:53]}  Bd7 {[%clk 0:02:01]} 12. cxd4 {[%clk 0:02:51]}  Bd6 {[%clk 0:01:50]} 13. Qf3 {[%clk 0:02:45]}  f6 {[%clk 0:01:43]} 14. Nd3 {[%clk 0:02:43]}  Re8 {[%clk 0:01:38]} 15. Bf4 {[%clk 0:02:41]}  Rxe1+ {[%clk 0:01:21]} 16. Rxe1 {[%clk 0:02:42]}  Qf8 {[%clk 0:01:20]} 17. Qg3 {[%clk 0:02:07]}  Bf5 {[%clk 0:01:07]} 18. Nc5 {[%clk 0:02:01]}  Re8 {[%clk 0:01:01]} 19. Rxe8 {[%clk 0:01:47]}  Qxe8 {[%clk 0:01:00]} 20. h3 {[%clk 0:01:46]}  Bxc5 {[%clk 0:00:50]} 21. dxc5 {[%clk 0:01:47]}  Bxc2 {[%clk 0:00:47]} 22. Bxc7 {[%clk 0:01:47]}  Qd7 {[%clk 0:00:22]} 23. Ba5 {[%clk 0:01:37]}  Bf5 {[%clk 0:00:21]} 24. Qb8+ {[%clk 0:01:13]}  Kf7 {[%clk 0:00:20]} 25. Bc7 {[%clk 0:01:05]}  d4 {[%clk 0:00:20]} 26. Bd6 {[%clk 0:01:05]}  h5 {[%clk 0:00:18]} 27. Qh8 {[%clk 0:00:38]}  Kg6 {[%clk 0:00:18]} 28. f3 {[%clk 0:00:34]}  Qe6 {[%clk 0:00:16]} 29. g4 {[%clk 0:00:34]}  Qe1+ {[%clk 0:00:15]} 30. Kg2 {[%clk 0:00:35]}  hxg4 {[%clk 0:00:13]} 31. hxg4 {[%clk 0:00:34]}  Qe2+ {[%clk 0:00:13]} 32. Kg3 {[%clk 0:00:30]}  Qe1+ {[%clk 0:00:13]} 33. Kg2 {[%clk 0:00:26]}  Qe2+ {[%clk 0:00:13]} 34. Kg3 {[%clk 0:00:23]}  Qe1+ {[%clk 0:00:13]} 35. Kg2 {[%clk 0:00:18]} 1/2-1/2


[Site "https://www.chess.com"]

[Event "Titled Tuesday Blitz September 13 Early 2022"]
[White "Belov, Vladimir"]
[Black "Wachinger, Guenther"]
[WhiteFideId "4132394"]
[BlackFideId "4604261"]
[WhiteElo "2501"]
[BlackElo "2212"]
[Result "0-1"]
[Round "09"]
[TimeControl "180+1"]
[Date "2022.09.13"]
[WhiteClock "0:00:02"]
[BlackClock "0:00:45"]

1. e4 {[%clk 0:03:00]}  c5 {[%clk 0:03:00]} 2. Nf3 {[%clk 0:03:01]}  d6 {[%clk 0:03:00]} 3. d4 {[%clk 0:03:01]}  cxd4 {[%clk 0:03:01]} 4. Nxd4 {[%clk 0:03:02]}  Nf6 {[%clk 0:03:01]} 5. Nc3 {[%clk 0:03:02]}  a6 {[%clk 0:03:02]} 6. Be3 {[%clk 0:03:01]}  e6 {[%clk 0:03:01]} 7. g4 {[%clk 0:02:51]}  e5 {[%clk 0:02:39]} 8. Nf5 {[%clk 0:02:51]}  g6 {[%clk 0:02:39]} 9. g5 {[%clk 0:02:48]}  gxf5 {[%clk 0:02:29]} 10. exf5 {[%clk 0:02:48]}  d5 {[%clk 0:02:29]} 11. Qf3 {[%clk 0:02:25]}  Ne4 {[%clk 0:02:29]} 12. Nxe4 {[%clk 0:02:17]}  dxe4 {[%clk 0:02:30]} 13. Qxe4 {[%clk 0:02:17]}  Nc6 {[%clk 0:02:30]} 14. Bc4 {[%clk 0:02:10]}  Qd7 {[%clk 0:02:25]} 15. g6 {[%clk 0:02:01]}  fxg6 {[%clk 0:02:26]} 16. fxg6 {[%clk 0:02:01]}  Qe7 {[%clk 0:02:26]} 17. O-O-O {[%clk 0:01:43]}  Be6 {[%clk 0:02:20]} 18. Rhg1 {[%clk 0:00:58]}  Bxc4 {[%clk 0:02:20]} 19. Qxc4 {[%clk 0:00:58]}  hxg6 {[%clk 0:02:20]} 20. Rxg6 {[%clk 0:00:57]}  Rh4 {[%clk 0:02:17]} 21. Qb3 {[%clk 0:00:50]}  Rb4 {[%clk 0:01:58]} 22. Qg8 {[%clk 0:00:49]}  Qf7 {[%clk 0:01:40]} 23. Re6+ {[%clk 0:00:40]}  Ne7 {[%clk 0:01:39]} 24. Qxf7+ {[%clk 0:00:17]}  Kxf7 {[%clk 0:01:40]} 25. Rxe5 {[%clk 0:00:18]}  Bg7 {[%clk 0:01:40]} 26. Rc5 {[%clk 0:00:14]}  Bxb2+ {[%clk 0:01:37]} 27. Kd2 {[%clk 0:00:15]}  Rd8+ {[%clk 0:01:36]} 28. Ke2 {[%clk 0:00:15]}  Rxd1 {[%clk 0:01:36]} 29. Kxd1 {[%clk 0:00:16]}  Nc6 {[%clk 0:01:33]} 30. Rh5 {[%clk 0:00:13]}  Bf6 {[%clk 0:01:30]} 31. Rh7+ {[%clk 0:00:13]}  Kg6 {[%clk 0:01:30]} 32. Rc7 {[%clk 0:00:12]}  Ne5 {[%clk 0:01:26]} 33. Ke2 {[%clk 0:00:10]}  Ng4 {[%clk 0:01:23]} 34. Bd2 {[%clk 0:00:09]}  Rb2 {[%clk 0:01:21]} 35. h3 {[%clk 0:00:08]}  Ne5 {[%clk 0:01:18]} 36. a4 {[%clk 0:00:06]}  Nc6 {[%clk 0:01:17]} 37. Kd3 {[%clk 0:00:03]}  Nb4+ {[%clk 0:00:53]} 38. Bxb4 {[%clk 0:00:03]}  Rxb4 {[%clk 0:00:54]} 39. a5 {[%clk 0:00:03]}  Rb5 {[%clk 0:00:48]} 40. c4 {[%clk 0:00:02]}  Rb3+ {[%clk 0:00:47]} 41. Ke4 {[%clk 0:00:02]}  Bd8 {[%clk 0:00:45]} 0-1


[Site "https://www.chess.com"]